Cogmind - Beta 16 X2 @@@ ROGUE MODE // 2025.10.06 @ 16:22:46 Player: Skysub Result: Destroyed by UC-WMB(R) with Subdweller Laser Performance ------------- Evolutions (0) 0 Regions Visited (3) 600 Robots Destroyed (53) 265 Value Destroyed (1114) 1114 Prototype IDs (1) 20 Alien Tech Used (0) 0 Bonus (154) 154 TOTAL SCORE: 2153 Bonus ------- Follower Combat Kills 154 Cogmind --------- Core Integrity 0/250 Matter 275/300 Energy 100/100 System Corruption 0% Temperature Cool (6) Movement Rolling (150) Ox4 Location -10/Subcaves Parts ------- > --- POWER (1) -------- (None) > --- PROPULSION (2) --- Subdweller Monowheel > --- UTILITY (2) ------ Huge Storage Unit Structural Scanner > --- WEAPON (2) ------- Autogun Heavy Battle Rifle > --- INVENTORY (25) --- Subdweller Power Source Subdweller Monowheel Subdweller Monowheel Seismic Detector Targeting Computer Scrap Shield Subdweller Beam Cannon Heavy Assault Rifle Heavy Assault Rifle Heavy Assault Rifle Autogun Autogun Autogun Autogun Autogun Autogun Subdweller Machine Gun Improved Assault Rifle Improved Assault Rifle Improved Assault Rifle Improved Assault Rifle Grenade Launcher Grenade Launcher Flail Peak State ------------ > --- POWER ------------ Subdweller Power Source > --- PROPULSION ------- Wheel Subdweller Monowheel > --- UTILITY ---------- Huge Storage Unit Structural Scanner > --- WEAPON ----------- Heavy Battle Rifle Flail > --- INVENTORY -------- Subdweller Power Source Subdweller Monowheel Subdweller Monowheel Seismic Detector Targeting Computer Scrap Shield Subdweller Beam Cannon Heavy Assault Rifle Heavy Assault Rifle Heavy Assault Rifle Heavy Assault Rifle Autogun Autogun Autogun Autogun Autogun Autogun Autogun Improved Assault Rifle Improved Assault Rifle Improved Assault Rifle Improved Assault Rifle Grenade Launcher Grenade Launcher [Rating: 18] Favorites ----------- Power Light Ion Engine Engine Light Ion Engine Propulsion Light Treads Treads Light Treads Wheel Wheel Utility Huge Storage Unit Device Structural Scanner Storage Huge Storage Unit Weapon Autogun Ballistic Gun Autogun Launcher Grenade Launcher Impact Weapon Flail Build | -11 -10 -10 -10 ------- Run | Yrd Mat Min Sub Slots Evolved . | . . . . Power . | . . . . Propulsion . | . . . . Utility . | . . . . Weapon . | . . . . Parts Attached 34 | 8 10 3 13 Power 4 | 1 1 . 2 Engine 4 | 1 1 . 2 Core . | . . . . Reactor . | . . . . Propulsion 8 | 3 1 . 4 Treads 3 | 2 1 . . Leg . | . . . . Wheel 5 | 1 . . 4 Hover . | . . . . Flight . | . . . . Utility 7 | 2 3 1 1 Device 3 | 1 . 1 1 Storage 4 | 1 3 . . Processor . | . . . . Hackware . | . . . . Protection . | . . . . Artifact . | . . . . Weapon 15 | 2 5 2 6 Energy Gun . | . . . . Energy Cannon . | . . . . Ballistic Gun 11 | 2 4 . 5 Ballistic Cannon . | . . . . Launcher 3 | . 1 1 1 Special Weapon . | . . . . Impact Weapon 1 | . . 1 . Slashing Weapon . | . . . . Piercing Weapon . | . . . . Special Melee Weapon . | . . . . Unidentified Prototypes 1 | . 1 . . Parts Lost 7 | . 1 1 5 Power 2 | . 1 . 1 Propulsion 3 | . . . 3 Utility 1 | . . 1 . Weapon 1 | . . . 1 Highest Loss Streak 1 | . 1 1 1 To Critical Strikes . | . . . . Average Backups 20 | 3 14 23 24 Power . | . . 1 1 Propulsion 2 | 1 2 2 2 Utility 2 | . 2 3 2 Weapon 14 | . 9 17 17 Tool/Special . | . . . . Unused Backups 19 | . 2 . 17 Power 1 | . . . 1 Propulsion 2 | . . . 2 Utility 3 | . . . 3 Weapon 13 | . 2 . 11 Tool/Special . | . . . . Average Slot Usage (%) 96 | . 99 99 92 Engine 13 | . 13 14 13 Treads 11 | . 22 14 3 Wheel 13 | . 5 14 18 Device 13 | . 14 13 14 Storage 14 | . 14 14 14 Ballistic Gun 23 | . 27 26 19 Impact Weapon 3 | . . 1 7 Peak Build Rating 18 | 7 15 15 18 Average Rating 13 | 5 11 14 15 On Entrance 9 | . 7 15 14 Avg Prop Armor Cover (%) 3 | . 2 11 2 Naked Turns . | . . . . Heaviest Build 93 | 13 90 90 93 Greatest Support 40 | 40 40 10 40 Greatest Overweight (x) 9 | 3 8 8 9 Average Overweight (x) 4 | . 1 8 4 Largest Inventory Capacity 25 | 8 25 25 25 Average Capacity 21 | 7 16 25 25 Most Carried 25 | 6 23 25 25 Average Carried 20 | 3 14 23 24 Final Capacity 25 | 8 25 25 25 Final Carried 25 | 5 23 25 25 Class Distribution -------------------- 86% | Mutant 13% | Scavenger-Mutant Dominant Class ---------------- Mutant | -10/Materials Mutant | -10/Mines Mutant | -10/Subcaves Resources | -11 -10 -10 -10 ----------- Run | Yrd Mat Min Sub Matter Collected 1442 | 284 521 94 543 Remotely . | . . . . Salvage Created 1262 | 58 571 124 509 Parts 104 | 7 51 15 31 Haulers Intercepted . | . . . . Recyclers Shooed 1 | . 1 . . Parts Field Recycled . | . . . . Retrieved Matter . | . . . . Parts Self-Destructed 19 | . . . 19 Prevented . | . . . . Parts Restored . | . . . . Kills | -11 -10 -10 -10 ------- Run | Yrd Mat Min Sub Combat Hostiles Destroyed 40 | . 19 5 16 Guns 27 | . 12 5 10 AOE 13 | . 7 . 6 Classes Destroyed 8 | 1 6 . 1 Worker 1 | . 1 . . Builder 2 | . 2 . . Tunneler 4 | 2 . 2 . Operator 2 | . 2 . . Watcher 3 | . 3 . . Swarmer 18 | . 9 4 5 Grunt 14 | . 10 1 3 Subdweller 9 | . . . 9 Best Kill Streak 8 | 2 8 4 2 Combat Bots Only 5 | . 5 4 2 Max Kills in Single Turn 4 | 1 4 2 3 Gunslinging . | . . . . Exploded 3 | . 3 . 2 Melee . | . . . . Uniques/NPCs Destroyed . | . . . . Combat | -11 -10 -10 -10 -------- Run | Yrd Mat Min Sub Hostile Shots Fired 146 | . 57 24 65 Missed 34 | . 8 9 17 Hits 112 | . 49 15 48 Projectile 112 | . 49 15 48 Critical Strikes 3 | . . . 3 Damage Taken 1501 | . 523 128 850 Core 260 | . 19 22 219 Absorbed by Shields . | . . . . Core Remaining (%) 100 | 100 . . . Volleys Fired 100 | 3 48 8 41 Largest 2 | 2 2 2 2 Hottest 56 | 40 50 46 56 Shots Fired 191 | 6 93 15 77 Gun 175 | 6 88 14 67 Cannon . | . . . . Launcher 16 | . 5 1 10 Special . | . . . . Kinetic 175 | 6 88 14 67 Thermal . | . . . . Explosive 16 | . 5 1 10 Electromagnetic . | . . . . Robot Hit Streak 14 | 4 9 10 14 Robot Miss Streak 4 | 2 4 2 3 Penetration Max . | . . . . Secondary Targets 1 | . . 1 . Max Gunslinging Chain 1 | . . 1 . Shots Hit Robots 127 | 4 58 9 56 Core Hits 69 | 2 34 9 24 Critical Kills . | . . . . Critical Parts Destroyed . | . . . . Critical Strikes . | . . . . Melee Attacks 34 | . . 3 31 Impact 34 | . . 3 31 Slashing . | . . . . Piercing . | . . . . Sneak Attacks . | . . . . Combat Hostiles . | . . . . Follow-up Attacks . | . . . . Damage Inflicted 3117 | 53 1390 244 1430 Guns 1735 | 53 807 125 750 Cannons . | . . . . Explosions 1314 | . 577 119 618 Melee 62 | . . . 62 Ramming 6 | . 6 . . Kinetic 1735 | 53 807 125 750 Thermal . | . . . . Explosive 1314 | . 577 119 618 Electromagnetic . | . . . . Impact 62 | . . . 62 Slashing . | . . . . Piercing . | . . . . Highest Corruption . | . . . . Average Corruption . | . . . . Corruption Purged . | . . . . Corruption Blocked . | . . . . Overload Shots . | . . . . Overflow Damage 40 | . 40 . . Projectiles . | . . . . Explosions 35 | . 35 . . Melee 5 | . 5 . . Knockbacks . | . . . . Impact . | . . . . Kinetic . | . . . . Secondary . | . . . . Self-Inflicted Damage 72 | . 40 . 32 Shots 4 | . 2 . 2 Rammed 1 | . 1 . . Targets Rammed 1 | . 1 . . Kicked . | . . . . Crushed . | . . . . Highest Temperature 30 | . 30 12 10 Average Temperature 8 | . 9 5 10 Received Heat Transfer 435 | . 186 18 231 Siege Activations . | . . . . Martial Activations . | . . . . Shielding Activations . | . . . . Robots Disrupted . | . . . . Combat Hostiles . | . . . . Robots Corrupted 1 | . 1 . . Combat Hostiles . | . . . . Parts Fried 1 | . 1 . . Impact Corruptions 1 | . 1 . . Robots Melted . | . . . . Combat Hostiles . | . . . . Parts Melted 1 | . . . 1 Heat Transferred . | . . . . Parts Sabotaged . | . . . . Parts Stolen . | . . . . Parts Stripped . | . . . . Power Chain Reactions . | . . . . Alert | -11 -10 -10 -10 ------- Run | Yrd Mat Min Sub Maximum Alert Level 1 | . 1 . . Low Security (%) 56 | 100 41 100 . Level 1 43 | . 58 . . Level 2 . | . . . . Level 3 . | . . . . Level 4 . | . . . . Level 5 . | . . . . High Security . | . . . . Max Security . | . . . . Peak Influence 350 | 10 350 154 . Initial 35 | . . 35 . Average 168 | 1 208 65 . Influence Increases 1171 | 10 664 271 226 Destroy 0b10 Robot/C 740 | . 380 200 160 Destroy 0b10 Robot/NC 60 | 10 40 10 . Destroy Leader 126 | . 86 20 20 Allied During Kill 34 | . . 33 1 Successful Hack 35 | . 35 . . Select Force Hacks 60 | . 60 . . Destroy Structure 41 | . 33 8 . Lose Combat Pursuer 75 | . 30 . 45 Influence Decreases 1171 | 10 572 262 327 Entered New Map 110 | . . 57 53 Time Decay 984 | 10 562 175 237 Lost Part 37 | . 10 10 17 Lost Ally 40 | . . 20 20 Squads Dispatched 6 | . 6 . . Investigation 3 | . 3 . . Extermination . | . . . . Reinforcement 3 | . 3 . . Assault . | . . . . Garrison . | . . . . Intercept . | . . . . Searches Triggered . | . . . . Construction Impeded . | . . . . Haulers Reinforced . | . . . . Active Scanning Responses . | . . . . Cargo Convoy Interrupts . | . . . . Stealth | -11 -10 -10 -10 --------- Run | Yrd Mat Min Sub Distress Signals 4 | . 4 . . Communications Jammed . | . . . . Distress Signals . | . . . . Times Spotted 62 | . 29 10 23 Peak Tracking Total 4 | . 4 3 3 Tactical Retreats 3 | . 1 . 2 Traps | -11 -10 -10 -10 ------- Run | Yrd Mat Min Sub Traps Triggered 1 | . 1 . . Indirectly . | . . . . Trap Hack Attempts . | . . . . Triggered . | . . . . Disarmed . | . . . . Reprogrammed . | . . . . Reused . | . . . . Traps Extracted . | . . . . Installed . | . . . . Triggered . | . . . . Machines | -11 -10 -10 -10 ---------- Run | Yrd Mat Min Sub Machines Disabled . | . . . . Max in Single Turn . | . . . . Machines Repaired . | . . . . Machines Dismantled . | . . . . Machines Sabotaged . | . . . . Overloaded Fab Kills . | . . . . Hacking | -11 -10 -10 -10 --------- Run | Yrd Mat Min Sub Machines Accessed 9 | . 8 . 1 Terminals 6 | . 6 . . Fabricators . | . . . . Repair Stations . | . . . . Recycling Units 2 | . 2 . . Scanalyzers . | . . . . Garrison Access . | . . . . Total Hacks 25 | . 21 . 4 Successful 17 | . 13 . 4 Failed 8 | . 8 . . Catastrophic . | . . . . Database Lockouts . | . . . . Manual 16 | . 16 . . Terminals 14 | . 14 . . Fabricators . | . . . . Repair Stations . | . . . . Recycling Units 7 | . 7 . . Scanalyzers . | . . . . Garrison Access . | . . . . Terminal Hacks 4 | . . . 4 Record 4 | . . . 4 Fabricator Hacks . | . . . . Repair Station Hacks . | . . . . Recycling Unit Hacks 4 | . 4 . . Report Inventory 2 | . 2 . . Retrieve Components 2 | . 2 . . Scanalyzer . | . . . . Garrison Access Hacks . | . . . . Unauthorized Hacks 9 | . 9 . . Terminals 7 | . 7 . . Botnet 1 | . 1 . . Skim 6 | . 6 . . Fabricators . | . . . . Repair Stations . | . . . . Recycling Units 2 | . 2 . . Tunnel 2 | . 2 . . Scanalyzers . | . . . . Garrison Access . | . . . . Data Cores Recovered . | . . . . Used . | . . . . Hacking Detections 6 | . 6 . . Full Trace Events . | . . . . Feedback Events . | . . . . Feedback Blocked . | . . . . Robot Schematics Acquired . | . . . . Robots Built . | . . . . Authchips . | . . . . Time . | . . . . Total Robot Build Rating . | . . . . Part Schematics Acquired . | . . . . Parts Built . | . . . . Authchips . | . . . . Time . | . . . . Total Part Build Rating . | . . . . Part Studies Acquired . | . . . . Parts Repaired . | . . . . Time . | . . . . Parts Recycled . | . . . . Recycled Matter . | . . . . Retrieved Matter . | . . . . Retrieved Components 5 | . 5 . . Parts Scanalyzed . | . . . . Part Schematics Acquired . | . . . . Parts Damaged . | . . . . Bothacking | -11 -10 -10 -10 ------------ Run | Yrd Mat Min Sub Used RIF Installer . | . . . . Robots Hacked . | . . . . Non-combat . | . . . . Combat . | . . . . Robot Hacks Applied . | . . . . Relay Couplers Released . | . . . . Fabnet Peak Effective % . | . . . . Robots Rewired . | . . . . Allies Hacked . | . . . . Hacks Repelled . | . . . . Allies | -11 -10 -10 -10 -------- Run | Yrd Mat Min Sub Total Allies 3 | . . 3 . Largest Group 3 | . . 3 2 Highest-Rated Group 40 | . . 40 32 Highest-Rated Ally 16 | . . 16 16 Total Orders . | . . . . Ally Attacks 45 | . . 31 14 Total Damage 352 | . . 242 110 Kills 7 | . . 5 2 Allies Corrupted . | . . . . Allies Melted . | . . . . Intel | -11 -10 -10 -10 ------- Run | Yrd Mat Min Sub Active Infowar (turns) 4530 | 10 1687 457 2376 Structural 2376 | . . . 2376 Seismic 2154 | 10 1687 457 . Robot Analysis Total . | . . . . Derelict Logs Recovered 3 | . . 1 2 Drone Launches . | . . . . Drone Recoveries . | . . . . Exploration | -11 -10 -10 -10 ------------- Run | Yrd Mat Min Sub Turns Passed 4655 | 112 1687 480 2376 Spaces Moved 2252 | 58 652 212 1330 Core 15 | 15 . . . Treads 549 | 43 506 . . Legs . | . . . . Wheels 1688 | . 146 212 1330 Hover . | . . . . Flight . | . . . . Fastest Speed 50 | 50 160 200 130 Average Speed 165 | 149 168 200 158 Slowest Speed 215 | 200 200 200 215 Overloaded Moves . | . . . . Propulsion Burnouts . | . . . . Robots Hopped . | . . . . Potential Cave-ins 2 | . . . 2 Cave-ins Triggered . | . . . . Exploration Rate (%) 57 | 5 97 53 74 Regions Visited 3 Branch Regions 2 Pre-discovered Areas 2 | . 2 . . Known Exits Taken 1 | . . 1 . Unknown Exits Taken 2 | 1 1 . . Scrap Searched 1 | . . 1 . Spaces Dug 19 | . 8 . 11 Terrain Destroyed 97 | . 34 8 55 Melee 11 | . . . 11 Projectile . | . . . . AOE 86 | . 34 8 44 Terrain Rammed . | . . . . Walls Destroyed . | . . . . Machines Disabled . | . . . . Actions | -11 -10 -10 -10 --------- Run | Yrd Mat Min Sub Total 2966 | 75 1163 248 1480 Wait 467 | . 414 20 33 Move 2249 | 57 651 211 1330 Hop . | . . . . Pick Up 42 | 6 24 2 10 Fast Attach 7 | 6 . 1 . Attach 6 | 2 1 . 3 Detach 1 | 1 . . . Swap 38 | . 13 3 22 Drop 21 | . 11 . 10 Fire 100 | 3 48 8 41 Melee 34 | . . 3 31 Ram . | . . . . Kick . | . . . . Crush 1 | . 1 . . Escape Stasis . | . . . . Rewire . | . . . . Trap . | . . . . Miscellaneous . | . . . . Route ------- -11/Scrapyard -10/Materials (discovered 5 exits: *Mat x3 / [*Min] / Sub) -10/Mines (discovered 4 exits: *Mat x2 / [*Exi] / *Sub) -10/Subcaves (discovered 3 exits: [*Mat x2] / [*Scr]) History --------- Turn | Location | Event 21 | -11/Scrapyard | Discovered new exit (range 16) 113 | -11/Scrapyard | Entered Materials 293 | -10/Materials | Discovered new exit (range 6) 308 | -10/Materials | Build established: Mutant 414 | -10/Materials | Discovered new exit (range 16) 613 | -10/Materials | Derelicts attacked the area 791 | -10/Materials | Discovered new exit (range 15) 963 | -10/Materials | Discovered new exit (range 12) 1435 | -10/Materials | Learned Storage security intel 1562 | -10/Materials | Identified exit to Subcaves 1562 | -10/Materials | Learned location of 2 exits from Materials 1678 | -10/Materials | Learned location of 2 exits from Mines 1718 | -10/Materials | Learned Storage trap positions 1766 | -10/Materials | Learned Storage trap positions 1800 | -10/Materials | Entered Mines 1801 | -10/Mines | Identified exit to Materials 1836 | -10/Mines | Deemed a non-threat by the Exiles lab entrance 1836 | -10/Mines | Discovered new exit (range 5) 1913 | -10/Mines | Excavation squad dispatched 1913 | -10/Mines | A large section of the Mines collapsed 1982 | -10/Mines | Assisted by bots powering up and referring to "LRC-V3" 2095 | -10/Mines | Discovered exit to Materials (range 12) 2280 | -10/Mines | Entered Subcaves 2280 | -10/Subcaves | Accompanied by 2 allies 2281 | -10/Subcaves | Approached by a straggling Scientist 2428 | -10/Subcaves | Visited Clippyterm 2434 | -10/Subcaves | Learned Factory emergency access door positions 2892 | -10/Subcaves | Core integrity fell below 50% 3184 | -10/Subcaves | Shifting Twisted Machinery released Multitool 3192 | -10/Subcaves | Shifting Twisted Machinery released Hvy. Battle Rifle 3401 | -10/Subcaves | Discovered new exit (range 13) 3445 | -10/Subcaves | Discovered new exit (range 10) 3469 | -10/Subcaves | Scientist uncovered a shortcut to Scraptown 3757 | -10/Subcaves | Shifting Twisted Machinery released Sub. Machine Gun 3791 | -10/Subcaves | Shifting Twisted Machinery released Sub. Machine Gun 3913 | -10/Subcaves | Build established: Scavenger-Mutant 4155 | -10/Subcaves | A swath of the cavern ceiling suddenly collapsed 4182 | -10/Subcaves | Ambushed by Subdweller buried in earth 4460 | -10/Subcaves | Shifting Twisted Machinery released Sub. Optics 4493 | -10/Subcaves | Shifting Twisted Machinery released Sub. Shrapnel Launcher 4527 | -10/Subcaves | Build established: Mutant 4538 | -10/Subcaves | Core integrity fell below 20% 4656 | -10/Subcaves | Destroyed by UC-WMB(R) with Subdweller Laser Last Messages --------------- 04032_ Acquired 32 matter. 04113_ Acquired derelict log, extracted data. Data stored: Storage entrances (x1). A swath of the cavern ceiling suddenly collapses. 04183_ 81-BV2(R): "ARGHSUB!" 04198_ 81-BV2(R) destroyed. 04201_ Acquired 33 matter. 04218_ Wheel destroyed. 04321_ Acquired 10 matter. Sub. Optics falls loose from the Twisted Machinery. Sub. Shrapnel Launcher falls loose from the Twisted Machinery. 04531_ Broken Sub. Power Source destroyed. 04538_ Disposable Heat Sink melted. 04538_ ZJ-OYX(R) destroyed. 04540_ Acquired 55 matter. 04586_ SG-FW8(u) tweaks Twisted Machinery. 04618_ Acquired 6 matter. 04648_ C4-NXN(R) destroyed. Map ----- +----------------------------------------------------+ | ??????????????????????????????????????????? | | ??????????????????????????????????????????? | | ??????????????????????????????????????????? | | ??????????????????????????????????????????? | | ??????????????????????????????????????????? | | ??????????????????????????????????????????? | | ??????????????????????????????????????????? | | ??????????????????????????????????????????? | | ??????????????????????????????????????????? | | ??????????????????????????????????????????? | | ??????????????????????????????????????????? | | ??????????????????????????????????????????? | | ??????????????????????????????????????????? | | ????????????????? ###?????????????????????? | | ????????????????? ####????????????????????? | | ????????????????? ###????????????????????? | | ?????????????????? ##????????????????????? | | ?????????????????? ##????????????????????? | | ???????????????### ##????????????????????? | | ??????????????#### ##????????????????????? | | ??????????????### ##????????????????????? | | ??????????????## ##????????????????????? | | ??????????????## ##????????????????????? | | ??????????????## * ###????????????????????? | | ??????????????###R#######?????????????????? | | ??????????????## &@ ######????????????????? | | ??????????????## ## ###????????????????? | | ??????????????## # %# ################??? | | ??????????????##### ## %################??? | | ??????????????##### % ### ## # ??? | | ?????????????????## % ### ??? | | ?????????????????### ## ??????? | | ?????????????????#### ### ##??????? | | ??????????????????### ##### ###?????? | | ???????????????????### # ## ###?????? | | ???????????????????### ##?????? | | ????????????????###### % ####?????? | | ????????????????###### ## ## ?????? | | ???????????????### ### ##### ## ???????? | | ??????????????#### % #"" # ???????? | | ??????????????### ###"""""" "????????? | | ??????????????## ###" """ ?????? | | ??????????????## ##?? #"#"#####?????? | | ??????????????## ###?""#########?????? | | ??????????????## % ###?? ######????????? | | ??????????????### ###?? ###???????????? | | ??????????????### ####? ##???????????? | | ??????????????### ##### % ##???????????? | | ??????????????##" #####% ##???????????? | | ??????????????##" % #### ##???????????? | +----------------------------------------------------+ Best States ------------- Heat Dissipation 25 Energy Generation 15 Energy Capacity 200 Matter Stores 300 Matter Capacity 300 Sight Range 16 Terrain Scan Density 10 Evasion (%) 50 Recoil Reduction 2 Item Schematics ----------------- None Robot Schematics ------------------ None Fabricated ------------ Nothing Repaired ---------- Nothing Studied --------- None Alien Tech Used ----------------- None Achievements -------------- None Challenges ------------ None Game ------ Seed PitchforkArmorThruster Manual? 0 Play Time 00:25:26 Cumulative 268.1 hours Start 2025.10.06 @ 16:01:18 End 2025.10.06 @ 16:22:46 Sessions 1 Manual Loads 0 Difficulty Rogue Special Mode None Game No. 291 Rogue 291 Adventurer 0 Explorer 0 Win Type - Total 11 Types 5/0/3/1/0/0/0/1/0/1 Lore% 76 Gallery% 74 Achievement% 52 Wizard Run 0 Options --------- Layout 1 ASCII 0 Keyboard 1 Movement Numpad Keybinds 0 Fullscreen 2 Font 28/SmallcapsGlow Map View 52x41 Zoom Use 0% Tactical HUD 1 Map Filters NONE Filters NONE Steam 1 RUN: b5175244-91dd-49c4-a470-df42a18c684f